Cogmind - Beta 14 @@@ ROGUE MODE // 2024.10.25 @ 14:51:52 Player: SpaceWalrus Result: Destroyed by D-53 Grenadier with Mini Grenade Launcher Performance ------------- Evolutions (1) 500 Regions Visited (4) 800 Robots Destroyed (45) 225 Value Destroyed (784) 784 Prototype IDs (2) 40 Alien Tech Used (0) 0 Bonus (0) 0 TOTAL SCORE: 2349 Bonus ------- None Cogmind --------- Core Integrity 0/400 Matter 275/300 Energy 50/100 System Corruption 0% Temperature Cool (0) Movement Core (100) Ox1 Location -9/Mines Parts ------- > --- POWER (1) -------- (None) > --- PROPULSION (2) --- (None) > --- UTILITY (4) ------ Small Storage Unit Signal Interpreter Hacking Suite Hacking Suite > --- WEAPON (2) ------- (None) > --- INVENTORY (8) ---- Hardened Light Armor Plating Hardened Light Armor Plating Hacking Suite System Shield Ion Cannon Peak State ------------ > --- POWER ------------ Nuclear Core > --- PROPULSION ------- Aluminum Leg Aluminum Leg > --- UTILITY ---------- Improved Heat Sink Small Storage Unit Experimental Sensor Array Signal Interpreter > --- WEAPON ----------- Beam Rifle Pulse Rifle > --- INVENTORY -------- Heat Sink Hardened Light Armor Plating Hardened Light Armor Plating Hacking Suite Hacking Suite Hacking Suite System Shield Ion Cannon [Rating: 26] Favorites ----------- Power Ion Engine Engine Ion Engine Power Core Nuclear Core Propulsion Aluminum Leg Leg Aluminum Leg Flight Unit Improved Flight Unit Utility Small Storage Unit Device Structural Scanner Storage Small Storage Unit Processor Signal Interpreter Hackware Hacking Suite Protection Hardened Light Armor Plating Weapon Small Laser Energy Gun Small Laser Energy Cannon Ion Cannon Launcher Rocket Launcher Build | -11 -10 -10 -9 -9 ------- Run | Yrd Mat Min Mat Min Slots Evolved 2 | . . . 2 . Power . | . . . . . Propulsion . | . . . . . Utility 2 | . . . 2 . Weapon . | . . . . . Parts Attached 39 | 6 9 6 15 3 Power 5 | 1 2 1 1 . Engine 4 | 1 2 . 1 . Core 1 | . . 1 . . Reactor . | . . . . . Propulsion 8 | 2 3 . 3 . Treads . | . . . . . Leg 7 | 2 3 . 2 . Wheel . | . . . . . Hover . | . . . . . Flight 1 | . . . 1 . Utility 16 | 1 2 3 7 3 Device 11 | . 2 3 5 1 Storage 1 | 1 . . . . Processor 1 | . . . 1 . Hackware 2 | . . . . 2 Protection 1 | . . . 1 . Artifact . | . . . . . Weapon 10 | 2 2 2 4 . Energy Gun 7 | 2 2 1 2 . Energy Cannon 2 | . . 1 1 . Ballistic Gun . | . . . . . Ballistic Cannon . | . . . . . Launcher 1 | . . . 1 . Special Weapon . | . . . . . Impact Weapon . | . . . . . Slashing Weapon . | . . . . . Piercing Weapon . | . . . . . Special Melee Weapon . | . . . . . Unidentified Prototypes 2 | . . 1 1 . Parts Lost 11 | . 2 . 1 8 Power 1 | . . . . 1 Propulsion 2 | . . . . 2 Utility 5 | . 1 . 1 3 Weapon 3 | . 1 . . 2 Highest Loss Streak 8 | . 2 . 1 8 To Critical Strikes . | . . . . . Average Slot Usage (%) 96 | . 98 100 89 55 Engine 9 | . 14 9 3 5 Core 3 | . . 4 7 . Leg 26 | . 28 28 22 11 Device 14 | . 12 14 16 11 Storage 13 | . 14 14 11 11 Processor 1 | . . . 6 11 Energy Gun 22 | . 27 23 15 5 Energy Cannon 1 | . . 4 . . Launcher 1 | . . . 5 . Peak Build Rating 26 | 6 10 17 26 24 Average Rating 12 | 5 8 11 20 14 On Entrance 10 | . 6 9 15 24 Naked Turns . | . . . . . Heaviest Build 22 | 13 16 22 22 18 Greatest Support 20 | 20 20 20 20 20 Greatest Overweight (x) 6 | 2 . 1 6 3 Average Overweight (x) . | . . . . . Largest Inventory Capacity 8 | 8 8 8 8 8 Average Capacity 7 | 7 8 8 8 8 Most Carried 8 | 5 8 8 8 8 Average Carried 6 | 2 4 7 7 7 Final Capacity 8 | 8 8 8 8 8 Final Carried 8 | 3 6 8 8 5 Class Distribution -------------------- 57% | Mutant 42% | Scavenger-Mutant Dominant Class ---------------- Mutant | -10/Materials Scavenger-Mutant | -10/Mines Mutant | -9/Materials Mutant | -9/Mines Resources | -11 -10 -10 -9 -9 ----------- Run | Yrd Mat Min Mat Min Matter Collected 574 | 260 89 17 208 . Remotely . | . . . . . Salvage Created 1229 | 168 689 . 372 . Parts 91 | 15 51 . 25 . Haulers Intercepted 3 | . 2 . 1 . Recyclers Shooed 1 | . 1 . . . Parts Field Recycled . | . . . . . Retrieved Matter . | . . . . . Parts Self-Destructed . | . . . . . Prevented . | . . . . . Kills | -11 -10 -10 -9 -9 ------- Run | Yrd Mat Min Mat Min Combat Hostiles Destroyed 23 | . 13 . 10 . Guns 21 | . 12 . 9 . Classes Destroyed 10 | 2 7 . 1 . Worker 4 | . 4 . . . Builder 1 | . 1 . . . Tunneler 5 | 5 . . . . Hauler 3 | . 2 . 1 . Recycler 1 | 1 . . . . Operator 6 | . 3 . 3 . Watcher 2 | . 2 . . . Swarmer 9 | . 6 . 3 . Grunt 13 | . 7 . 6 . Sentry 1 | . . . 1 . Best Kill Streak 7 | 4 7 . 4 . Combat Bots Only 6 | . 6 . 4 . Max Kills in Single Turn 2 | 1 2 . 1 . Gunslinging . | . . . . . Exploded . | . . . . . Melee . | . . . . . Uniques/NPCs Destroyed . | . . . . . Combat | -11 -10 -10 -9 -9 -------- Run | Yrd Mat Min Mat Min Hostile Shots Fired 188 | . 84 . 56 48 Missed 55 | . 23 . 16 16 Damage Taken 1751 | . 632 45 435 639 Core 606 | . 186 . 79 341 Absorbed by Shields . | . . . . . Core Remaining (%) 62 | 100 . 25 . . Volleys Fired 153 | 12 84 1 54 2 Largest 2 | 2 2 2 2 2 Hottest 123 | 90 115 123 119 119 Shots Fired 275 | 24 162 2 83 4 Gun 274 | 24 162 1 83 4 Cannon 1 | . . 1 . . Launcher . | . . . . . Special . | . . . . . Kinetic . | . . . . . Thermal 275 | 24 162 2 83 4 Explosive . | . . . . . Electromagnetic . | . . . . . Robot Hit Streak 14 | 9 14 . 13 2 Robot Miss Streak 7 | 1 7 . 3 2 Penetration Max . | . . . . . Secondary Targets 3 | . 2 . 1 . Max Gunslinging Chain 1 | . 1 . 1 . Shots Hit Robots 177 | 17 101 . 57 2 Core Hits 59 | 7 36 . 16 . Critical Kills . | . . . . . Critical Parts Destroyed . | . . . . . Critical Strikes 17 | 2 9 . 4 2 Burn 17 | 2 9 . 4 2 Melee Attacks . | . . . . . Impact . | . . . . . Slashing . | . . . . . Piercing . | . . . . . Sneak Attacks . | . . . . . Combat Hostiles . | . . . . . Follow-up Attacks . | . . . . . Damage Inflicted 2433 | 202 1273 . 927 31 Guns 2433 | 202 1273 . 927 31 Cannons . | . . . . . Explosions . | . . . . . Melee . | . . . . . Ramming . | . . . . . Kinetic . | . . . . . Thermal 2433 | 202 1273 . 927 31 Explosive . | . . . . . Electromagnetic . | . . . . . Impact . | . . . . . Slashing . | . . . . . Piercing . | . . . . . Highest Corruption 3 | . 3 3 . . Average Corruption 2 | . 2 3 . . Corruption Purged . | . . . . . Corruption Blocked . | . . . . . Effects 28 | . 13 15 . . Message Errors 11 | . 5 6 . . Matter Fused 5 | . 2 3 . . Heat Flow Errors 3 | . . 3 . . Energy Discharges 2 | . 2 . . . Parts Rejected 1 | . 1 . . . Parts Fused 2 | . . 2 . . Data Loss (minor) 1 | . . 1 . . Misfires 2 | . 2 . . . Alerts 1 | . 1 . . . Overload Shots . | . . . . . Overflow Damage . | . . . . . Projectiles . | . . . . . Explosions . | . . . . . Melee . | . . . . . Knockbacks . | . . . . . Impact . | . . . . . Kinetic . | . . . . . Secondary . | . . . . . Self-Inflicted Damage . | . . . . . Shots . | . . . . . Rammed . | . . . . . Targets Rammed . | . . . . . Kicked . | . . . . . Crushed . | . . . . . Highest Temperature 366 | 120 366 267 174 12 Average Temperature 77 | 51 92 122 45 7 Received Heat Transfer 405 | . 243 . 162 . Effects 1 | . 1 . . . Energy Bleed 1 | . 1 . . . Siege Activations . | . . . . . Robots Corrupted . | . . . . . Combat Hostiles . | . . . . . Parts Fried . | . . . . . Impact Corruptions . | . . . . . Robots Melted 2 | . 1 . 1 . Combat Hostiles 2 | . 1 . 1 . Parts Melted 12 | 1 9 . 2 . Heat Transferred 7330 | 693 4010 . 2405 222 Parts Sabotaged . | . . . . . Parts Stolen . | . . . . . Parts Stripped . | . . . . . Power Chain Reactions . | . . . . . Alert | -11 -10 -10 -9 -9 ------- Run | Yrd Mat Min Mat Min Peak Influence 346 | 30 346 75 155 75 Initial 75 | . 19 75 . 60 Average 108 | 13 213 40 55 38 Maximum Alert Level 1 | . 1 . . . Low Security (%) 80 | 100 47 100 100 100 Level 1 19 | . 52 . . . Level 2 . | . . . . . Level 3 . | . . . . . Level 4 . | . . . . . Level 5 . | . . . . . High Security . | . . . . . Max Security . | . . . . . Squads Dispatched 6 | . 3 . 3 . Investigation . | . . . . . Extermination . | . . . . . Reinforcement 6 | . 3 . 3 . Assault . | . . . . . Garrison . | . . . . . Intercept . | . . . . . Searches Triggered . | . . . . . Construction Impeded . | . . . . . Haulers Reinforced . | . . . . . Active Scanning Responses . | . . . . . Cargo Convoy Interrupts . | . . . . . Stealth | -11 -10 -10 -9 -9 --------- Run | Yrd Mat Min Mat Min Distress Signals 3 | . 1 . 2 . Communications Jammed . | . . . . . Distress Signals . | . . . . . Times Spotted 54 | . 29 . 18 7 Peak Tracking Total 8 | . 5 . 3 8 Tactical Retreats 2 | . 2 . . . Traps | -11 -10 -10 -9 -9 ------- Run | Yrd Mat Min Mat Min Traps Triggered 3 | . 2 1 . . Indirectly . | . . . . . Trap Hack Attempts . | . . . . . Triggered . | . . . . . Disarmed . | . . . . . Reprogrammed . | . . . . . Reused . | . . . . . Traps Extracted . | . . . . . Installed . | . . . . . Triggered . | . . . . . Machines | -11 -10 -10 -9 -9 ---------- Run | Yrd Mat Min Mat Min Machines Disabled 1 | . . . . 1 Max in Single Turn 1 | . . . . 1 Machines Repaired . | . . . . . Machines Dismantled . | . . . . . Machines Sabotaged . | . . . . . Overloaded Fab Kills . | . . . . . Hacking | -11 -10 -10 -9 -9 --------- Run | Yrd Mat Min Mat Min Machines Accessed 3 | . 1 1 1 . Terminals 2 | . 1 . 1 . Fabricators . | . . . . . Repair Stations . | . . . . . Recycling Units . | . . . . . Scanalyzers . | . . . . . Garrison Access . | . . . . . Total Hacks 6 | . 3 1 2 . Successful 3 | . 2 1 . . Failed 3 | . 1 . 2 . Catastrophic . | . . . . . Database Lockouts . | . . . . . Manual . | . . . . . Terminals 5 | . 3 . 2 . Fabricators . | . . . . . Repair Stations . | . . . . . Recycling Units . | . . . . . Scanalyzers . | . . . . . Garrison Access . | . . . . . Terminal Hacks 3 | . 2 1 . . Open Door 1 | . . 1 . . Level Access Points 1 | . 1 . . . Alert Level 1 | . 1 . . . Fabricator Hacks . | . . . . . Repair Station Hacks . | . . . . . Recycling Unit Hacks . | . . . . . Scanalyzer . | . . . . . Garrison Access Hacks . | . . . . . Unauthorized Hacks . | . . . . . Terminals . | . . . . . Fabricators . | . . . . . Repair Stations . | . . . . . Recycling Units . | . . . . . Scanalyzers . | . . . . . Garrison Access . | . . . . . Data Cores Recovered . | . . . . . Used . | . . . . . Hacking Detections 2 | . 1 . 1 . Full Trace Events . | . . . . . Feedback Events . | . . . . . Feedback Blocked . | . . . . . Robot Schematics Acquired . | . . . . . Robots Built . | . . . . . Authchips . | . . . . . Time . | . . . . . Total Robot Build Rating . | . . . . . Part Schematics Acquired . | . . . . . Parts Built . | . . . . . Authchips . | . . . . . Time . | . . . . . Total Part Build Rating . | . . . . . Parts Repaired . | . . . . . Time . | . . . . . Parts Recycled . | . . . . . Recycled Matter . | . . . . . Retrieved Matter . | . . . . . Retrieved Components . | . . . . . Parts Scanalyzed . | . . . . . Part Schematics Acquired . | . . . . . Parts Damaged . | . . . . . Bothacking | -11 -10 -10 -9 -9 ------------ Run | Yrd Mat Min Mat Min Used RIF Installer . | . . . . . Robots Hacked . | . . . . . Non-combat . | . . . . . Combat . | . . . . . Robot Hacks Applied . | . . . . . Relay Couplers Released . | . . . . . Fabnet Peak Effective % . | . . . . . Robots Rewired . | . . . . . Allies Hacked . | . . . . . Hacks Repelled . | . . . . . Allies | -11 -10 -10 -9 -9 -------- Run | Yrd Mat Min Mat Min Total Allies 1 | . . 1 . . Largest Group 1 | . . 1 . . Highest-Rated Group 31 | . . 31 . . Highest-Rated Ally 31 | . . 31 . . Total Orders . | . . . . . Ally Attacks . | . . . . . Total Damage . | . . . . . Kills . | . . . . . Allies Corrupted . | . . . . . Allies Melted . | . . . . . Intel | -11 -10 -10 -9 -9 ------- Run | Yrd Mat Min Mat Min Robot Analysis Total . | . . . . . Derelict Logs Recovered 1 | . . 1 . . Drone Launches . | . . . . . Drone Recoveries . | . . . . . Exploration | -11 -10 -10 -9 -9 ------------- Run | Yrd Mat Min Mat Min Turns Passed 2412 | 150 918 736 589 19 Spaces Moved 1441 | 92 496 525 319 9 Core 28 | 21 . . 1 6 Treads . | . . . . . Legs 1413 | 71 496 525 318 3 Wheels . | . . . . . Hover . | . . . . . Flight . | . . . . . Fastest Speed 50 | 50 120 120 120 100 Average Speed 125 | 110 120 136 121 117 Slowest Speed 350 | 150 120 190 350 200 Overloaded Moves . | . . . . . Propulsion Burnouts . | . . . . . Robots Hopped . | . . . . . Cave-ins Triggered . | . . . . . Exploration Rate (%) 43 | 5 75 98 27 10 Regions Visited 4 Branch Regions 2 Pre-discovered Areas 1 | . . 1 . . Known Exits Taken 2 | . . 1 1 . Unknown Exits Taken 2 | 1 1 . . . Scrap Searched 1 | . . 1 . . Spaces Dug . | . . . . . Terrain Destroyed . | . . . . . Melee . | . . . . . Projectile . | . . . . . AOE . | . . . . . Terrain Rammed . | . . . . . Walls Destroyed . | . . . . . Machines Disabled . | . . . . . Actions | -11 -10 -10 -9 -9 --------- Run | Yrd Mat Min Mat Min Total 1771 | 115 662 544 436 14 Wait 88 | . 54 . 34 . Move 1437 | 91 495 524 318 9 Hop . | . . . . . Pick Up 30 | 6 12 6 6 . Fast Attach 10 | 3 2 1 4 . Attach 17 | 3 6 . 5 3 Detach 2 | . . . 2 . Swap 12 | . 1 5 6 . Drop 22 | . 8 7 7 . Fire 153 | 12 84 1 54 2 Melee . | . . . . . Ram . | . . . . . Kick . | . . . . . Crush . | . . . . . Escape Stasis . | . . . . . Rewire . | . . . . . Trap . | . . . . . Miscellaneous . | . . . . . Route ------- -11/Scrapyard -10/Materials (discovered 4 exits: *Mat x3 / *Min) -10/Mines (discovered 2 exits: *Mat x2) -9/Materials -9/Mines History --------- Turn | Location | Event 6 | -11/Scrapyard | Discovered new exit (range 15) 151 | -11/Scrapyard | Entered Materials 279 | -10/Materials | Discovered new exit (range 16) 305 | -10/Materials | Build established: Mutant 405 | -10/Materials | Identified exit to Materials 578 | -10/Materials | Core integrity fell below 50% 1053 | -10/Materials | Discovered new exit (range 14) 1069 | -10/Materials | Entered Mines 1099 | -10/Mines | Discovered exit to Materials (range 13) 1109 | -10/Mines | Build established: Scavenger-Mutant 1109 | -10/Mines | Found a hidden stash of uninstalled traps 1261 | -10/Mines | Discovered exit to Materials (range 8) 1341 | -10/Mines | Received a Rocket Launcher from a helpful Derelict 1361 | -10/Mines | Found a damaged Exp. Sensor Array with a note attached 1363 | -10/Mines | Found Prototype Device 1364 | -10/Mines | Identified Exp. Sensor Array 1392 | -10/Mines | Received a Mining Laser from a helpful Derelict 1549 | -10/Mines | Met a Derelict who couldn't figure out how to use a Trap Extractor 1805 | -10/Mines | Entered Materials 1805 | -9/Materials | Evolved 2 slots: Utility x2 1845 | -9/Materials | Build established: Mutant 2294 | -9/Materials | Discovered new exit (range 7) 2300 | -9/Materials | Identified exit to Mines 2394 | -9/Materials | Entered Mines 2395 | -9/Mines | Assembled infested the area 2407 | -9/Mines | Core integrity fell below 50% 2413 | -9/Mines | Core integrity fell below 20% 2413 | -9/Mines | Destroyed by D-53 Grenadier with Mini Grenade Launcher Last Messages --------------- C-30 ARC bursts open, deploying its payload. D-53 Grenadier unfolds itself. Pulse Rifle destroyed. T-07 Excavator is excavating. Aluminum Leg destroyed. U-05 Engineer lays Concrete. Exp. Sensor Array destroyed. U-05 Engineer lays Concrete. Ion Engine destroyed. U-05 Engineer lays Concrete. U-05 Engineer builds a Wall. Imp. Heat Sink destroyed. S-10 Pest destroyed. U-05 Engineer builds a Wall. U-05 Engineer lays Concrete. Heat Sink destroyed. U-05 Engineer builds a Wall. as-65965 powers down. The unstable cave ceiling collapses. U-05 Engineer lays Concrete. Map ----- +----------------------------------------------------+ | ?????????????????????????????????????????????????? | | ?????????????????????????????????????????????????? | | ?????????????????????????????????????????????????? | | ?????????????????????????????????????????????????? | | ?????????????????????????????????????????????????? | | ?????????????????????????????????????????????????? | | ?????????????????????????????????????????????????? | | ?????????????????????????????????????????????????? | | ?????????????????????????????????????????????????? | | ?????????????????????????????????????????????????? | | ?????????????????????????????????????????????????? | | ?????????????????????????????????????????????????? | | ?????????????????????????????????????????????????? | | ?????????????????????????????????????????????????? | | ?????????????????????????????????????????????????? | | ?????????????????????????????????????????????????? | | ?????????????#???????????????????????????????????? | | ????????????? ?????????????????????????????????? | | ?????????????? ^????????????????????????????????? | | ??????????????? #??????????????????????????????? | | ????????????????? ?#??#####????????????????????? | | ?????????????????? # ## # ###########??????????? | | ????????????????????^ # ## #??????????? | | ?????????????????????# # """ #??????????? | | ???????????????# #### s""" #??????????? | | ???????????????# @ % " " #??????????? | | ???????????????# ##### s #??????????? | | ??????????????????????# s #??????????? | | ??????????????????????## #??????????? | | ???????????????????????# #??????????? | | ???????????????????????# #??????????? | | ???????????????????????# # # d #??????????? | | ???????????????????????# ## du #??????????? | | ???????????????????????# ?## ##b ##??????????? | | ???????????????????????# ??# #$###???????????? | | ???????????????????????# ??#######%#?????????????? | | ???????????????????????# ?????????" ?????????????? | | ??????????????????????? ?????????"" ????????????? | | ??????????????????????? ??????????"" #???????????? | | ???????????????????????a??????????"" #???????????? | | ??????????????????????? ?????????? ? ???????????? | | ????????????????????????????????????? ???????????? | | ?????????????????????????????????????????????????? | | ?????????????????????????????????????????????????? | | ?????????????????????????????????????????????????? | | ?????????????????????????????????????????????????? | | ?????????????????????????????????????????????????? | | ?????????????????????????????????????????????????? | | ?????????????????????????????????????????????????? | | ?????????????????????????????????????????????????? | +----------------------------------------------------+ Best States ------------- Heat Dissipation 42 Energy Generation 14 Energy Capacity 250 Matter Stores 300 Matter Capacity 300 Sight Range 16 Robot Scan Range 20 Terrain Scan Range 16 Terrain Scan Density 10 Armor Coverage 150 Evasion (%) 63 Item Schematics ----------------- None Robot Schematics ------------------ None Fabricated ------------ Nothing Alien Tech Used ----------------- None Achievements -------------- None Challenges ------------ None Game ------ Seed WarlordDisassembledScythe Manual? 0 Play Time 00:18:45 Cumulative 39.4 hours Start 2024.10.25 @ 14:17:33 End 2024.10.25 @ 14:51:52 Sessions 3 Manual Loads 0 Difficulty Rogue Special Mode None Game No. 49 Rogue 49 Adventurer 0 Explorer 0 Win Type - Total 0 Types 0/0/0/0/0/0/0/0/0 Lore% 20 Gallery% 40 Achievement% 25 Wizard Run 0 Options --------- Layout 1 ASCII 0 Keyboard 0 Movement Mouse Keybinds 0 Fullscreen 1 Font 24/Smallcaps Map View 50x40 Zoom Use 0% Tactical HUD 0 Map Filters NONE Filters NONE Steam 1 RUN: febea06e-0b15-46e1-9dd9-2ee5adafe8aa